Cogmind - Beta 14 @@@ ROGUE MODE // 2024.09.12 @ 18:38:19 Player: Cmdr.Laserstrahl Result: Destroyed by Y-54 Guardian with Gatling Laser Performance ------------- Evolutions (3) 1500 Regions Visited (6) 1200 Robots Destroyed (130) 650 Value Destroyed (3331) 3331 Prototype IDs (5) 100 Alien Tech Used (0) 0 Bonus (292) 292 TOTAL SCORE: 7073 Bonus ------- High Alert Combat Kills 292 Cogmind --------- Core Integrity 0/700 Matter 283/300 Energy 157/160 System Corruption 9% Temperature Cool (6) Movement Rolling (86) Location -7/Storage Parts ------- > --- POWER (1) -------- Light Nuclear Core > --- PROPULSION (4) --- Wheel Wheel Compact Wheel > --- UTILITY (6) ------ Improved Heat Sink Large Storage Unit Machine Analyzer Advanced Targeting Computer Core Analyzer > --- WEAPON (2) ------- Precision Assault Rifle Mini Assault Cannon > --- INVENTORY (15) --- Improved Deuterium Engine Improved Cooling System Medium Matter Pod (100) Improved Shield Generator Hacking Suite Hacking Suite Precision Assault Rifle Mini Grenade Launcher Improved Grenade Launcher Heavy Missile Launcher Heavy Mace Chainsword Peak State ------------ > --- POWER ------------ Reinforced Deuterium Engine > --- PROPULSION ------- Armored Huge Wheel Armored Huge Wheel > --- UTILITY ---------- Large Storage Unit Machine Analyzer Seismic Detector Advanced Targeting Computer Advanced Targeting Computer Hardened Medium Armor Plating > --- WEAPON ----------- Precision Assault Rifle Precision Assault Rifle > --- INVENTORY -------- Improved Heat Sink Improved Cooling System Medium Matter Pod Sensor Array Hacking Suite Hacking Suite Improved EM Pulse Cannon Ion Cannon Precision Assault Rifle Precision Assault Rifle Mini Assault Cannon Mini Grenade Launcher Improved Grenade Launcher Heavy Missile Launcher Heavy Flail [Rating: 48] Favorites ----------- Power Light Nuclear Core Engine Light Ion Engine Power Core Light Nuclear Core Propulsion Armored Treads Treads Armored Treads Wheel Armored Huge Wheel Utility Large Storage Unit Device Seismic Detector Storage Large Storage Unit Processor Targeting Computer Protection Hardened Medium Armor Plating Weapon Minigun Energy Gun Medium Laser Energy Cannon Beam Cannon Ballistic Gun Minigun Ballistic Cannon Mini Assault Cannon Launcher Mini Grenade Launcher Impact Weapon Heavy Flail Build | -11 -10 -9 -9 -8 -7 -7 ------- Run | Yrd Mat Mat Min Mat Fac Sto Slots Evolved 6 | . . 2 . 2 2 . Power . | . . . . . . . Propulsion 2 | . . . . . 2 . Utility 4 | . . 2 . 2 . . Weapon . | . . . . . . . Parts Attached 79 | 8 13 10 . 17 19 12 Power 10 | 1 2 2 . 1 3 1 Engine 6 | 1 1 2 . . 2 . Core 4 | . 1 . . 1 1 1 Reactor . | . . . . . . . Propulsion 11 | 2 1 3 . 1 1 3 Treads 2 | . . 2 . . . . Leg . | . . . . . . . Wheel 9 | 2 1 1 . 1 1 3 Hover . | . . . . . . . Flight . | . . . . . . . Utility 23 | 3 4 2 . 5 6 3 Device 8 | 2 . 1 . . 3 2 Storage 3 | 1 2 . . . . . Processor 7 | . 2 1 . 2 2 . Hackware . | . . . . . . . Protection 5 | . . . . 3 1 1 Artifact . | . . . . . . . Weapon 35 | 2 6 3 . 10 9 5 Energy Gun 5 | 2 2 . . 1 . . Energy Cannon 4 | . 1 1 . . 1 1 Ballistic Gun 14 | . 1 2 . 6 3 2 Ballistic Cannon 2 | . . . . . 1 1 Launcher 3 | . . . . 1 1 1 Special Weapon . | . . . . . . . Impact Weapon 7 | . 2 . . 2 3 . Slashing Weapon . | . . . . . . . Piercing Weapon . | . . . . . . . Special Melee Weapon . | . . . . . . . Unidentified Prototypes 3 | . . . . 2 1 . Parts Lost 17 | . 1 2 . 2 3 9 Power 4 | . 1 . . 1 1 1 Propulsion 3 | . . 1 . . . 2 Utility 6 | . . . . 1 2 3 Weapon 4 | . . 1 . . . 3 Highest Loss Streak 8 | . 1 1 . 2 2 8 To Critical Strikes . | . . . . . . . Average Slot Usage (%) 91 | . 99 98 100 95 82 74 Engine 4 | . 10 11 11 . 2 3 Core 4 | . 3 . . 8 4 2 Treads 7 | . . 13 22 14 . . Wheel 11 | . 28 7 . 1 15 11 Device 7 | . 6 11 11 9 6 7 Storage 9 | . 14 11 11 9 7 7 Processor 20 | . 7 21 22 25 22 23 Protection 4 | . . . . 8 7 3 Energy Gun 1 | . 6 . . . . . Energy Cannon 3 | . 10 7 . . 1 3 Ballistic Gun 11 | . 9 13 22 15 8 3 Impact Weapon 1 | . 1 . . 1 1 1 Peak Build Rating 48 | 7 11 22 22 37 48 46 Average Rating 28 | 6 8 17 22 29 45 36 On Entrance 20 | . 7 9 22 22 37 46 Naked Turns . | . . . . . . . Heaviest Build 52 | 13 28 32 32 42 52 43 Greatest Support 56 | 32 32 40 40 40 56 56 Greatest Overweight (x) 11 | . . 1 . 1 . 11 Average Overweight (x) . | . . . . . . . Largest Inventory Capacity 15 | 8 15 15 15 15 15 15 Average Capacity 13 | 7 10 15 15 15 15 15 Most Carried 15 | 8 15 15 15 15 15 15 Average Carried 13 | 4 9 14 15 14 14 13 Final Capacity 15 | 8 15 15 15 15 15 15 Final Carried 15 | 7 15 15 15 15 15 12 Class Distribution -------------------- 96% | Mutant 3% | Scavenger-Mutant Dominant Class ---------------- Mutant | -10/Materials Mutant | -9/Materials Mutant | -9/Mines Mutant | -8/Materials Mutant | -7/Factory Mutant | -7/Storage Resources | -11 -10 -9 -9 -8 -7 -7 ----------- Run | Yrd Mat Mat Min Mat Fac Sto Matter Collected 2946 | 280 198 348 72 860 859 329 Remotely 95 | 95 . . . . . . Salvage Created 4976 | 139 599 673 293 1292 1319 661 Parts 240 | 11 34 36 16 77 45 21 Haulers Intercepted 7 | . 1 1 . 2 2 1 Recyclers Shooed 10 | . 1 5 . 1 1 2 Parts Field Recycled . | . . . . . . . Retrieved Matter . | . . . . . . . Parts Self-Destructed . | . . . . . . . Prevented . | . . . . . . . Kills | -11 -10 -9 -9 -8 -7 -7 ------- Run | Yrd Mat Mat Min Mat Fac Sto Combat Hostiles Destroyed 62 | . 8 5 . 21 18 10 Melee 4 | . 2 . . . 2 . Guns 33 | . 4 3 . 17 8 1 Cannons 11 | . 1 2 . . 4 4 AOE 12 | . . . . 4 4 4 Classes Destroyed 15 | 2 5 1 . 3 4 . Worker 12 | . 2 . 4 5 . 1 Builder 6 | . . . . 2 3 1 Tunneler 5 | 4 . . . 1 . . Hauler 7 | . 1 1 . 2 2 1 Recycler 23 | 1 2 5 3 3 5 4 Mechanic 1 | . . . . . 1 . Operator 4 | . 1 1 . 1 1 . Watcher 10 | . 2 2 . 4 2 . Swarmer 8 | . . . . 7 1 . Grunt 37 | . 8 4 . 9 11 5 Brawler 2 | . . . . . 2 . Duelist 1 | . . . . 1 . . Sentry 11 | . . 1 . 4 2 4 Hunter 2 | . . . . . 1 1 Programmer 1 | . . . . . 1 . Best Kill Streak 7 | 4 5 4 6 7 6 6 Combat Bots Only 4 | . 3 3 . 4 4 4 Max Kills in Single Turn 4 | 1 1 1 2 4 4 2 Gunslinging . | . . . . . . . Exploded 3 | . . . . 3 2 1 Melee 1 | . 1 . . . 1 . Uniques/NPCs Destroyed . | . . . . . . . Combat | -11 -10 -9 -9 -8 -7 -7 -------- Run | Yrd Mat Mat Min Mat Fac Sto Hostile Shots Fired 507 | . 44 35 . 67 101 260 Missed 187 | . 14 12 . 25 37 99 Damage Taken 4327 | . 398 295 49 578 1381 1626 Core 981 | . 171 89 . 14 192 515 Absorbed by Shields . | . . . . . . . Regen/Repaired (Parts) 99 | . . . . 99 . . Core Remaining (%) 76 | 100 31 . 77 97 . . Volleys Fired 297 | 9 52 39 8 85 77 27 Largest 2 | 2 2 2 2 2 2 2 Hottest 125 | 90 125 85 50 56 88 99 Shots Fired 564 | 18 92 78 16 167 141 52 Gun 408 | 18 60 43 16 163 94 14 Cannon 128 | . 32 35 . . 36 25 Launcher 28 | . . . . 4 11 13 Special . | . . . . . . . Kinetic 390 | . 26 43 16 163 116 26 Thermal 121 | 9 54 35 . . 14 9 Explosive 28 | . . . . 4 11 13 Electromagnetic 25 | 9 12 . . . . 4 Robot Hit Streak 34 | 5 16 8 11 26 34 16 Robot Miss Streak 6 | 2 6 3 1 5 2 3 Penetration Max . | . . . . . . . Secondary Targets 4 | . . . . 4 . . Max Gunslinging Chain 1 | . . . . 1 . . Shots Hit Robots 408 | 12 59 46 11 124 115 41 Core Hits 189 | 6 19 17 8 57 52 30 Critical Kills 4 | . 3 . . 1 . . Critical Parts Destroyed 6 | . 1 . . . 3 2 Critical Strikes 14 | 1 6 . . 1 4 2 Burn 3 | 1 2 . . . . . Meltdown 1 | . 1 . . . . . Destroy 3 | . 1 . . 1 1 . Blast 1 | . . . . . 1 . Smash 6 | . 2 . . . 2 2 Melee Attacks 43 | . 9 . . 7 24 3 Impact 43 | . 9 . . 7 24 3 Slashing . | . . . . . . . Piercing . | . . . . . . . Sneak Attacks 5 | . . . . 2 1 2 Combat Hostiles . | . . . . . . . Follow-up Attacks . | . . . . . . . Damage Inflicted 9979 | 152 952 813 324 2794 3484 1460 Guns 4950 | 152 455 379 183 2091 1448 242 Cannons 1855 | . 367 434 . . 636 418 Explosions 2265 | . . . 141 564 961 599 Melee 895 | . 130 . . 125 439 201 Ramming 14 | . . . . 14 . . Kinetic 5173 | . 131 379 183 2091 1869 520 Thermal 1695 | 75 576 434 141 . 400 69 Explosive 1912 | . . . . 564 749 599 Electromagnetic 290 | 77 115 . . . 27 71 Impact 895 | . 130 . . 125 439 201 Slashing . | . . . . . . . Piercing . | . . . . . . . Highest Corruption 9 | . 2 . . . 9 9 Average Corruption 5 | . 2 . . . 5 9 Corruption Purged . | . . . . . . . Corruption Blocked . | . . . . . . . Effects 36 | . 3 . . . 23 10 Message Errors 6 | . . . . . 3 3 Matter Fused 10 | . . . . . 8 2 Heat Flow Errors 2 | . . . . . 2 . Energy Discharges 4 | . 1 . . . 1 2 Parts Rejected 2 | . . . . . 2 . Data Loss (minor) 3 | . . . . . 1 2 Data Loss (major) 3 | . 1 . . . 2 . Misfires 4 | . 1 . . . 2 1 Alerts 2 | . . . . . 2 . Overload Shots . | . . . . . . . Overflow Damage 583 | . 55 . 24 92 218 194 Projectiles 53 | . 6 . . . 47 . Explosions 112 | . . . 24 65 . 23 Melee 418 | . 49 . . 27 171 171 Knockbacks 12 | . 1 . . . 10 1 Impact 4 | . 1 . . . 3 . Kinetic 8 | . . . . . 7 1 Secondary . | . . . . . . . Self-Inflicted Damage 212 | . . . 49 . 114 49 Shots 7 | . . . 1 . 5 1 Rammed 2 | . . . . 2 . . Targets Rammed 3 | . . . . 3 . . Kicked . | . . . . . . . Crushed 1 | . . . . 1 . . Highest Temperature 346 | 90 346 261 18 74 240 298 Average Temperature 62 | 34 100 88 6 14 22 138 Received Heat Transfer 1635 | . 243 159 . 279 339 615 Effects 5 | . 4 . . . . 1 Shutdowns 1 | . 1 . . . . . Interference 4 | . 3 . . . . 1 Siege Activations . | . . . . . . . Robots Corrupted 3 | . . . . . 1 2 Combat Hostiles 1 | . . . . . . 1 Parts Fried 12 | . 3 . . 2 2 5 Impact Corruptions 14 | . 2 . . 1 7 4 Robots Melted 1 | . 1 . . . . . Combat Hostiles 1 | . 1 . . . . . Parts Melted 8 | 2 3 . . . 3 . Heat Transferred 3495 | 296 1480 925 150 . 533 111 Parts Sabotaged . | . . . . . . . Parts Stolen . | . . . . . . . Parts Stripped . | . . . . . . . Power Chain Reactions . | . . . . . . . Alert | -11 -10 -9 -9 -8 -7 -7 ------- Run | Yrd Mat Mat Min Mat Fac Sto Peak Influence 934 | 25 250 252 179 399 934 804 Initial 373 | . 16 22 97 69 168 373 Average 267 | 11 142 139 145 244 386 602 Maximum Alert Level 3 | . 1 1 . 1 3 3 Low Security (%) 50 | 100 80 74 100 41 30 . Level 1 35 | . 19 25 . 58 36 18 Level 2 5 | . . . . . 8 42 Level 3 9 | . . . . . 23 39 Level 4 . | . . . . . . . Level 5 . | . . . . . . . High Security . | . . . . . . . Max Security . | . . . . . . . Squads Dispatched 16 | . . 2 . 2 11 1 Investigation 5 | . . 1 . 1 3 . Extermination 1 | . . . . . 1 . Reinforcement 9 | . . 1 . 1 6 1 Assault 1 | . . . . . 1 . Garrison . | . . . . . . . Intercept . | . . . . . . . Searches Triggered . | . . . . . . . Construction Impeded 3 | . . . . 1 2 . Haulers Reinforced 2 | . . . . . 2 . Active Scanning Responses . | . . . . . . . Cargo Convoy Interrupts . | . . . . . . . Stealth | -11 -10 -9 -9 -8 -7 -7 --------- Run | Yrd Mat Mat Min Mat Fac Sto Distress Signals 7 | . . . . 3 2 2 Communications Jammed . | . . . . . . . Distress Signals . | . . . . . . . Times Spotted 120 | . 19 10 . 35 41 15 Peak Tracking Total 6 | . 4 3 . 5 5 6 Tactical Retreats 8 | . 2 . . . 6 . Traps | -11 -10 -9 -9 -8 -7 -7 ------- Run | Yrd Mat Mat Min Mat Fac Sto Traps Triggered 6 | . 1 1 . . 4 . Indirectly . | . . . . . . . Trap Hack Attempts . | . . . . . . . Triggered . | . . . . . . . Disarmed 6 | . . . . 6 . . Reprogrammed . | . . . . . . . Reused . | . . . . . . . Traps Extracted . | . . . . . . . Installed . | . . . . . . . Triggered . | . . . . . . . Machines | -11 -10 -9 -9 -8 -7 -7 ---------- Run | Yrd Mat Mat Min Mat Fac Sto Machines Disabled 19 | . . . 2 1 11 5 Max in Single Turn 6 | . . . 2 1 6 2 Garrison Access 1 | . . . . . 1 . Machines Repaired . | . . . . . . . Machines Dismantled . | . . . . . . . Machines Sabotaged . | . . . . . . . Overloaded Fab Kills . | . . . . . . . Hacking | -11 -10 -9 -9 -8 -7 -7 --------- Run | Yrd Mat Mat Min Mat Fac Sto Machines Accessed 34 | . 6 1 1 9 15 2 Terminals 21 | . 6 1 1 3 8 2 Fabricators 1 | . . . . . 1 . Repair Stations 3 | . . . . 2 1 . Recycling Units 3 | . . . . 2 1 . Scanalyzers 5 | . . . . 2 3 . Garrison Access 1 | . . . . . 1 . Total Hacks 89 | . 15 2 2 32 35 3 Successful 57 | . 5 1 1 25 24 1 Failed 31 | . 9 1 1 7 11 2 Catastrophic 2 | . 2 . . . . . Database Lockouts 1 | . 1 . . . . . Manual 34 | . 10 1 1 6 15 1 Terminals 47 | . 15 2 2 11 14 3 Fabricators 1 | . . . . . 1 . Repair Stations 5 | . . . . 4 1 . Recycling Units 6 | . . . . 4 2 . Scanalyzers 27 | . . . . 13 14 . Garrison Access 3 | . . . . . 3 . Terminal Hacks 12 | . 5 1 1 3 2 . Part Schematic 1 | . 1 . . . . . Prototype ID Bank 1 | . 1 . . . . . Open DSF 2 | . . . . . 2 . Terminal Index 1 | . . 1 . . . . Locate Traps 2 | . 1 . . 1 . . Disarm Traps 1 | . . . . 1 . . Hauler Manifests 1 | . 1 . . . . . Zone Layout 3 | . 1 . 1 1 . . Fabricator Hacks . | . . . . . . . Repair Station Hacks 4 | . . . . 4 . . Scan Component 2 | . . . . 2 . . Repair 2 | . . . . 2 . . Recycling Unit Hacks 4 | . . . . 3 1 . Report Inventory 3 | . . . . 2 1 . Retrieve Components 1 | . . . . 1 . . Scanalyzer 19 | . . . . 11 8 . Insert Component 8 | . . . . 4 4 . Analyze 11 | . . . . 7 4 . Garrison Access Hacks 1 | . . . . . 1 . Seal Access 1 | . . . . . 1 . Unauthorized Hacks 17 | . . . . 4 12 1 Terminals 14 | . . . . 4 9 1 Track 3 | . . . . 1 2 . Botnet 9 | . . . . 2 6 1 Operators 2 | . . . . 1 1 . Fabricators 1 | . . . . . 1 . Download 1 | . . . . . 1 . Repair Stations . | . . . . . . . Recycling Units . | . . . . . . . Scanalyzers 2 | . . . . . 2 . Extract 2 | . . . . . 2 . Garrison Access . | . . . . . . . Data Cores Recovered 1 | . . . . 1 . . Used . | . . . . . . . Hacking Detections 23 | . 7 1 . 6 8 1 Full Trace Events 3 | . 1 . . 2 . . Feedback Events . | . . . . . . . Feedback Blocked . | . . . . . . . Robot Schematics Acquired . | . . . . . . . Robots Built . | . . . . . . . Authchips . | . . . . . . . Time . | . . . . . . . Total Robot Build Rating . | . . . . . . . Part Schematics Acquired 10 | . 1 . . 3 6 . Parts Built . | . . . . . . . Authchips . | . . . . . . . Time . | . . . . . . . Total Part Build Rating . | . . . . . . . Parts Repaired 2 | . . . . 2 . . Time 70 | . . . . 70 . . Parts Recycled . | . . . . . . . Recycled Matter . | . . . . . . . Retrieved Matter . | . . . . . . . Retrieved Components 10 | . . . . 10 . . Parts Scanalyzed 7 | . . . . 4 3 . Part Schematics Acquired 6 | . . . . 3 3 . Parts Damaged . | . . . . . . . Bothacking | -11 -10 -9 -9 -8 -7 -7 ------------ Run | Yrd Mat Mat Min Mat Fac Sto Used RIF Installer . | . . . . . . . Robots Hacked . | . . . . . . . Non-combat . | . . . . . . . Combat . | . . . . . . . Robot Hacks Applied . | . . . . . . . Relay Couplers Released . | . . . . . . . Fabnet Peak Effective % . | . . . . . . . Robots Rewired . | . . . . . . . Allies Hacked . | . . . . . . . Hacks Repelled . | . . . . . . . Allies | -11 -10 -9 -9 -8 -7 -7 -------- Run | Yrd Mat Mat Min Mat Fac Sto Total Allies . | . . . . . . . Largest Group . | . . . . . . . Highest-Rated Group . | . . . . . . . Highest-Rated Ally . | . . . . . . . Total Orders . | . . . . . . . Ally Attacks . | . . . . . . . Total Damage . | . . . . . . . Kills . | . . . . . . . Allies Corrupted . | . . . . . . . Allies Melted . | . . . . . . . Intel | -11 -10 -9 -9 -8 -7 -7 ------- Run | Yrd Mat Mat Min Mat Fac Sto Robot Analysis Total . | . . . . . . . Derelict Logs Recovered 1 | . . . 1 . . . Drone Launches . | . . . . . . . Drone Recoveries . | . . . . . . . Exploration | -11 -10 -9 -9 -8 -7 -7 ------------- Run | Yrd Mat Mat Min Mat Fac Sto Turns Passed 4489 | 148 800 381 233 1394 1223 310 Spaces Moved 2521 | 99 573 163 120 599 821 146 Core 10 | 4 . . . . . 6 Treads 695 | . . 96 120 479 . . Legs . | . . . . . . . Wheels 1816 | 95 573 67 . 120 821 140 Hover . | . . . . . . . Flight . | . . . . . . . Fastest Speed 50 | 50 100 100 170 115 100 86 Average Speed 121 | 97 100 142 170 163 100 113 Slowest Speed 600 | 100 100 250 170 250 100 600 Overloaded Moves . | . . . . . . . Propulsion Burnouts . | . . . . . . . Robots Hopped . | . . . . . . . Cave-ins Triggered 1 | . . . . . 1 . Exploration Rate (%) 34 | 6 82 20 26 52 27 26 Regions Visited 6 Branch Regions 2 Pre-discovered Areas . | . . . . . . . Known Exits Taken 1 | . 1 . . . . . Unknown Exits Taken 5 | 1 . 1 1 1 1 . Scrap Searched . | . . . . . . . Spaces Dug 17 | . 3 . . 4 10 . Terrain Destroyed 247 | . 3 . 12 43 113 76 Melee 15 | . 3 . . 4 8 . Projectile 8 | . . . . . 3 5 AOE 224 | . . . 12 39 102 71 Terrain Rammed . | . . . . . . . Walls Destroyed . | . . . . . . . Machines Disabled . | . . . . . . . Actions | -11 -10 -9 -9 -8 -7 -7 --------- Run | Yrd Mat Mat Min Mat Fac Sto Total 3348 | 133 698 246 136 861 1041 233 Wait 275 | . 21 7 9 128 70 40 Move 2515 | 98 572 162 119 598 820 146 Hop . | . . . . . . . Pick Up 69 | 16 16 14 . 10 9 4 Fast Attach 20 | . 3 3 . 6 6 2 Attach 27 | 8 2 4 . 3 2 8 Detach 2 | . 1 . . . . 1 Swap 32 | . 8 3 . 8 11 2 Drop 53 | 2 14 14 . 13 10 . Fire 297 | 9 52 39 8 85 77 27 Melee 43 | . 9 . . 7 24 3 Ram . | . . . . . . . Kick . | . . . . . . . Crush 3 | . . . . 3 . . Escape Stasis 12 | . . . . . 12 . Rewire . | . . . . . . . Trap . | . . . . . . . Miscellaneous . | . . . . . . . Route ------- -11/Scrapyard -10/Materials (discovered 3 exits: *Mat x2 / [*Min]) -9/Materials -9/Mines (discovered 2 exits: *Mat x2) -8/Materials -7/Factory (discovered 2 exits: [*Fac] / *Sto) -7/Storage History --------- Turn | Location | Event 30 | -11/Scrapyard | Discovered new exit (range 16) 149 | -11/Scrapyard | Entered Materials 311 | -10/Materials | Build established: Mutant 379 | -10/Materials | Core integrity fell below 50% 441 | -10/Materials | Discovered new exit (range 16) 519 | -10/Materials | Identified exit to Materials 650 | -10/Materials | Discovered exit to Materials (range 8) 652 | -10/Materials | Central database locked down 706 | -10/Materials | Discovered new exit (range 6) 949 | -10/Materials | Entered another Materials area 949 | -9/Materials | Evolved 2 slots: Utility x2 1296 | -9/Materials | Discovered new exit (range 15) 1330 | -9/Materials | Entered Mines 1353 | -9/Mines | Learned 2 Materials zone layouts 1387 | -9/Mines | Discovered new exit (range 6) 1415 | -9/Mines | Discovered new exit (range 15) 1563 | -9/Mines | Entered Materials 1563 | -8/Materials | Evolved 2 slots: Utility x2 2132 | -8/Materials | Repaired Minigun? 2463 | -8/Materials | Discovered new exit (range 10) 2790 | -8/Materials | Repaired Mni. Grenade Launcher 2957 | -8/Materials | Entered Factory 2957 | -7/Factory | Evolved 2 slots: Propulsion x2 2982 | -7/Factory | Discovered new exit (range 13) 3306 | -7/Factory | Discovered new exit (range 9) 3775 | -7/Factory | Crushed by falling debris 4157 | -7/Factory | First assault squad dispatched 4180 | -7/Factory | Entered Storage 4346 | -7/Storage | Core integrity fell below 50% 4364 | -7/Storage | Core integrity fell below 20% 4394 | -7/Storage | Lost 8 parts (1p2n2u3w) 4490 | -7/Storage | Destroyed by Y-54 Guardian with Gatling Laser Last Messages --------------- 04423_ Acquired Wheel. 04424_ System corrupted: Energy discharge (-54). 04424_ K-01 Serf collects debris. 04426_ The unstable cave ceiling collapses. 04426_ Acquired Com. Wheel. 04427_ K-01 Serf collects debris. 04430_ Acquired 29 matter. 04430_ K-01 Serf collects debris. 04431_ Acquired 29 matter. 04434_ K-01 Serf collects debris. 04434_ K-01 Serf destroyed. 04437_ The unstable cave ceiling collapses. 04437_ Acquired 4 matter. 04439_ The unstable cave ceiling collapses. 04439_ Acquired Wheel. 04448_ KOTM, &ZGK73JNJXEPKQ,8#ANOPL 04456_ K-01 Serf collects debris. 04463_ U-05 Engineer lays Concrete. 04469_ System corrupted: Matter fused (-7). 04476_ Acquired Chainsword. Map ----- +----------------------------------------------------+ | ?????????????????????????????????????????????????? | | ?????????????????????????????????????????????????? | | ?????????????????????????????????????????????????? | | ?????????????????????????????????????????????????? | | ?????????????????????????????????????????????????? | | ?????????????????????????????????????????????????? | | ?????????????????????????????????????????????????? | | ?????????????????????????????????????????????????? | | ???????????????????"??""""???????????????????????? | | ???????????????????T??""""???????????????????????? | | ???????????????????"??""""???????????????????????? | | ??????????????????????""""???????????????????????? | | ?????????????????????????????????????????????????? | | ?????????????????????????????????????????????????? | | ?????????????????????????????????????????????????? | | ?????????????????????????????????????????????????? | | ?????????????????????????????????????????????????? | | ?????????????????????????????????????????????????? | | ??????????????????????""?????????????????????????? | | ??????????????????????T??????????????????????????? | | ?????#???????????????????????????????????????????? | | ??#### ###???????????????????????????????????????? | | ??+ ?#######???????????????????????????????? | | ??# # ##############??????????????????? | | ??# # #? ???????????????? | | ??# """ Y @ #? ????????????????? | | ??# """ # # ?????????????????? | | ??? """ # ########## # ?????????????????? | | ??? """ ?## ##?####?? # + ???????????????? | | ??? """ ??# #??#" ### # #??? ?????????????? | | ??? ???# #### # #????????##"""##???? | | ???########## ## # ## #????????# T#???? | | ???# ## # %* # #????????# #????? | | ???# !! ## # "" # ##???????####+###??? | | #### ! # # ""% % # ########## #??? | | #? ?## + ""! #%" #??? | | ####+####" #% %% + "T #??? | | + "= % # #??? | | ####+######## !*=% # ##########%! #??? | | #? ????# %!% # ####????##% ##??? | | # #???# *%[! * # ###???#[ #???? | | #### """ #??# ##[ ###### % #???# #???? | | ???# """ #??## ##### # #???# #???? | | ???# """ #???#### ###??# # ##??# #???? | | ??? #??????###????# # #??# #???? | | ??#########?????????????## " ###??# #???? | | ?????????????????????????# "" #???# #???? | | ?????????????????????????# #???# #???? | | ?????????????????????????###### ###???# #???? | | ??????????????????????????????#######????#####???? | +----------------------------------------------------+ Best States ------------- Heat Dissipation 48 Energy Generation 16 Energy Capacity 290 Matter Stores 300 Matter Capacity 300 Sight Range 16 Robot Scan Range 14 Terrain Scan Density 10 Armor Coverage 225 Evasion (%) 42 Targeting Accuracy 16 Core Analysis 6 Recoil Reduction 2 Item Schematics ----------------- Lgt. Armor Plating | -10/Materials | Hacked Arm. Treads | -8/Materials | Scanalyzed Arm. Huge Wheel | -8/Materials | Scanalyzed Mni. Grenade Launcher | -8/Materials | Scanalyzed Prc. Assault Rifle | -7/Factory | Scanalyzed Hacking Suite | -7/Factory | Scanalyzed Imp. Cooling System | -7/Factory | Scanalyzed Arc Projector | -7/Factory | Extracted Component Analysis Suite | -7/Factory | Extracted Gravmag System | -7/Factory | Extracted Robot Schematics ------------------ None Fabricated ------------ Nothing Alien Tech Used ----------------- None Achievements -------------- None Challenges ------------ None Game ------ Seed TeslaRelayDisintegrator Manual? 0 Play Time 01:55:09 Cumulative 250.6 hours Start 2024.09.12 @ 13:30:40 End 2024.09.12 @ 18:38:19 Sessions 3 Manual Loads 0 Difficulty Rogue Special Mode None Game No. 111 Rogue 108 Adventurer 3 Explorer 0 Win Type - Total 0 Types 0/0/0/0/0/0/0/0/0 Lore% 22 Gallery% 50 Achievement% 37 Wizard Run 0 Options --------- Layout 2 ASCII 0 Keyboard 0 Movement Mouse Keybinds 0 Fullscreen 2 Font 24/Smallcaps Map View 50x44 Zoom Use 0% Tactical HUD 1 Map Filters NONE Filters NONE Steam 1 RUN: 7bb0a9ed-3804-4d74-a5aa-666942d12286